[Event "Kragero Resort B 2020"]
[Site "Kragero"]
[Date "2020.02.21"]
[Round "6.12"]
[White "Espeland, Jonatan"]
[Black "Aasen, Fredrik"]
[Result "1/2-1/2"]
[ECO "A37"]
[WhiteElo "1737"]
[BlackElo "1625"]
[Annotator "NA RC"]
[PlyCount "78"]
[EventDate "2020.02.19"]
[EventType "swiss"]
[EventCountry "NOR"]
[SourceTitle "playchess.com"]
[Source "ChessBase"]
[SourceQuality "1"]
[TimeControl "5400+30"]

1. c4 {[%emt 0:00:00]} c5 {[%emt 0:00:00]} 2. Nc3 {[%emt 0:00:00]} g6 {[%emt 0:00:00]} 3. g3 {[%emt 0:00:00]} Bg7 {[%emt 0:00:00]} 4. Bg2 {[%emt 0:00:00]} Nc6 {[%emt 0:00:04]} 5. a3 {[%emt 0:00:00]} d6 {[%emt 0:00:16]} 6. Rb1 {[%emt 0:00:13]} a5 {[%emt 0:00:10]} 7. d3 {[%emt 0:01:48]} e5 {[%emt 0:00:37]} 8. Nf3 {[%emt 0:01:02]} Nge7 {[%emt 0:00:38]} 9. O-O {[%emt 0:01:49]} O-O {[%emt 0:00:18]} 10. Ne1 {[%emt 0:02:07]} Be6 {[%emt 0:02:25]} 11. Nc2 {[%emt 0:01:21]} d5 {[%emt 0:02:17]} 12. cxd5 {[%emt 0:00:59]} Nxd5 {[%emt 0:00:11]} 13. Ne3 {[%emt 0:02:46]} Nde7 {[%emt 0:00:38]} 14. Nc4 {[%emt 0:05:16]} Rb8 {[%emt 0:14:40]} 15. Qa4 {[%emt 0:08:38]} Bd7 {[%emt 0:13:40]} 16. Qb3 {[%emt 0:30:42]} Be6 {[%emt 0:13:04]} 17. Qb6 {[%emt 0:01:06]} Bxc4 {[%emt 0:03:28]} 18. Qxd8 {[%emt 0:00:03]} Rfxd8 {[%emt 0:00:26]} 19. dxc4 {[%emt 0:00:10]} h6 {[%emt 0:05:45]} 20. Be3 {[%emt 0:09:13]} b6 {[%emt 0:04:32]} 21. Nd5 {[%emt 0:04:41]} Nxd5 {[%emt 0:05:40]} 22. Bxd5 {[%emt 0:01:13]} Ne7 {[%emt 0:05:58]} 23. Bg2 {[%emt 0:00:23]} Nf5 {[%emt 0:03:20]} 24. Bd5 {[%emt 0:06:15]} Ne7 {[%emt 0:04:34]} 25. Bg2 {[%emt 0:00:10]} Nf5 {[%emt 0:00:17]} 26. b4 {[%emt 0:01:01]} axb4 {[%emt 0:05:19]} 27. axb4 {[%emt 0:00:03]} Bf8 {[%emt 0:01:50]} 28. b5 {[%emt 0:01:09]} Nd4 {[%emt 0:02:56]} 29. Bxd4 {[%emt 0:01:47]} cxd4 {[%emt 0:01:15]} 30. Bd5 {[%emt 0:00:14]} Bc5 {[%emt 0:01:22]} 31. Rb2 {[%emt 0:04:58]} Re8 {[%emt 0:02:56]} 32. Ra2 {[%emt 0:00:26]} Re7 {[%emt 0:00:57]} 33. Rfa1 {[%emt 0:02:59]} Kg7 {[%emt 0:03:21]} 34. Ra7 {[%emt 0:02:25]} Rbe8 {[%emt 0:01:49]} 35. Kg2 {[%emt 0:04:16]} Rxa7 {[%emt 0:00:59]} 36. Rxa7 {[%emt 0:00:03]} Re7 {[%emt 0:00:12]} 37. Ra8 {[%emt 0:00:23]} e4 {[%emt 0:01:15]} 38. Ra2 {[%emt 0:05:25]} Bb4 {[%emt 0:00:53]} 39. f3 {[%emt 0:01:58]} e3 {[%emt 0:00:42]} 1/2-1/2

[Event "Kragero Resort B 2020"]
[Site "Kragero"]
[Date "2020.02.22"]
[Round "7.1"]
[White "Leonhardsen, Vebjorn Maanum"]
[Black "Halvorsen, Benjamin"]
[Result "0-1"]
[ECO "A85"]
[WhiteElo "1845"]
[BlackElo "1861"]
[Annotator "NA"]
[PlyCount "110"]
[EventDate "2020.02.19"]
[EventType "swiss"]
[EventCountry "NOR"]
[SourceTitle "playchess.com"]
[Source "ChessBase"]
[SourceQuality "1"]
[TimeControl "5400+30"]

1. d4 {[%emt 0:00:00]} f5 {[%emt 0:00:00]} 2. Nf3 {[%emt 0:00:37]} g6 {[%emt 0:00:16]} 3. c4 {[%emt 0:00:53]} Nf6 {[%emt 0:00:41]} 4. Nc3 {[%emt 0:00:22]} Bg7 {[%emt 0:00:18]} 5. Bg5 {[%emt 0:00:10]} O-O {[%emt 0:01:13]} 6. e3 {[%emt 0:00:16]} d6 {[%emt 0:01:08]} 7. Be2 {[%emt 0:00:45] A85: Dutch Defence: 2 c4 Nf6 3 Nc3.} e6 {[%emt 0:01:04]} 8. O-O {[%emt 0:00:52]} Qe8 {[%emt 0:00:58] [#]} 9. Bxf6 $146 {[%emt 0:02:58]} ({Predecessor:} 9. Qb3 c6 10. Rac1 h6 11. Bf4 Ne4 12. h3 g5 13. Bh2 d5 14. Rfd1 Qf7 15. Ne5 Bxe5 16. Bxe5 {1-0 (29) Ohff,A-Patzer,S Neumuenster 1999}) 9... Bxf6 {[%emt 0:01:31]} 10. Qc2 {[%emt 0:02:37]} e5 {[%emt 0:02:04]} 11. Nd5 {[%emt 0:03:35]} Bd8 {[%emt 0:01:45]} 12. dxe5 {[%emt 0:02:40]} dxe5 {[%emt 0:00:27]} 13. Rfd1 {[%emt 0:01:44]} c6 {[%emt 0:05:20]} 14. Nc3 {[%emt 0:01:15]} Bc7 {[%emt 0:01:11]} 15. b4 {[%emt 0:03:05]} e4 {[%emt 0:04:55]} 16. Nd4 {[%emt 0:03:11]} g5 {[%emt 0:05:41]} 17. Nb3 {[%emt 0:07:16]} (17. c5 $11) 17... Rf6 {[%emt 0:04:06]} 18. g3 {[%emt 0:01:12]} Nd7 {[%emt 0:01:50]} 19. Nd2 {[%emt 0:09:33]} g4 {[%emt 0:01:28]} 20. Kg2 {[%emt 0:14:44]} (20. c5 $17) 20... Rh6 {[%emt 0:15:43]} 21. Rh1 {[%emt 0:03:10]} Qh5 {[%emt 0:02:03]} 22. Kg1 {[%emt 0:02:45]} Ne5 {[%emt 0:02:04]} 23. h4 {[%emt 0:01:37]} Be6 {[%emt 0:03:53]} (23... Nf3+ $17 24. Kg2 Be6) 24. Kg2 {[%emt 0:03:14]} Qf7 {[%emt 0:07:27]} 25. c5 {[%emt 0:01:30]} Rd8 {[%emt 0:01:42]} 26. Rad1 {[%emt 0:06:17]} Nd3 {[%emt 0:02:01]} 27. Rb1 {[%emt 0:02:34]} Be5 $17 {[%emt 0:04:06]} 28. b5 {[%emt 0:12:18]} Nxc5 {[%emt 0:01:50]} 29. bxc6 {[%emt 0:01:10]} bxc6 {[%emt 0:00:40]} 30. Nb3 {[%emt 0:01:20]} Bxb3 {[%emt 0:03:55]} 31. axb3 {[%emt 0:00:20]} Nd3 {[%emt 0:02:09]} 32. Na4 {[%emt 0:02:31]} Rhd6 {[%emt 0:01:41]} 33. Rhd1 {[%emt 0:01:36]} Kg7 {[%emt 0:05:05]} 34. Nc5 {[%emt 0:01:39]} Nb4 {[%emt 0:01:31]} 35. Qc4 {[%emt 0:02:36]} Qxc4 {[%emt 0:08:10]} 36. bxc4 {[%emt 0:00:21]} Rxd1 {[%emt 0:00:13]} 37. Bxd1 {[%emt 0:00:26]} Kg6 {[%emt 0:01:33]} 38. Ba4 {[%emt 0:01:35]} a5 {[%emt 0:02:28]} 39. Nb7 {[%emt 0:01:42]} Rd2 {[%emt 0:00:16]} 40. Rd1 {[%emt 0:01:44]} Rxd1 {[%emt 0:02:12]} 41. Bxd1 {[%emt 0:00:09]} Bc7 {[%emt 0:00:05]} 42. Nc5 {[%emt 0:00:46]} Kf6 {[%emt 0:00:21]} 43. Kf1 {[%emt 0:00:23]} Ke5 {[%emt 0:00:16]} 44. Ke2 {[%emt 0:00:33]} Kd6 {[%emt 0:01:53]} 45. Na4 {[%emt 0:00:35]} Nd3 {[%emt 0:00:44]} 46. Bc2 {[%emt 0:01:20]} Nc5 {[%emt 0:00:24]} 47. Kd2 {[%emt 0:00:45]} Nxa4 {[%emt 0:00:45]} 48. Bxa4 {[%emt 0:00:05]} Bb6 {[%emt 0:00:13]} 49. Kc3 {[%emt 0:00:52]} Bc5 {[%emt 0:00:01]} 50. Kc2 {[%emt 0:00:22]} Bb4 {[%emt 0:00:06]} 51. Kd1 {[%emt 0:00:25]} Kc5 {[%emt 0:00:43]} 52. Ke2 {[%emt 0:00:37]} Bc3 {[%emt 0:00:53]} 53. Kd1 {[%emt 0:00:17]} Kb4 {[%emt 0:00:37]} 54. Bxc6 {[%emt 0:00:22]} a4 {[%emt 0:00:01]} 55. Kc2 {[%emt 0:00:27]} a3 {[%emt 0:00:39]} 0-1

[Event "Kragero Resort B 2020"]
[Site "Kragero"]
[Date "2020.02.22"]
[Round "7.2"]
[White "Westrum, Kim Roger Hansen"]
[Black "Seo, Jung Hyun"]
[Result "1/2-1/2"]
[ECO "B11"]
[WhiteElo "1809"]
[BlackElo "1816"]
[Annotator "NA"]
[PlyCount "54"]
[EventDate "2020.02.19"]
[EventType "swiss"]
[EventCountry "NOR"]
[SourceTitle "playchess.com"]
[Source "ChessBase"]
[SourceQuality "1"]
[TimeControl "5400+30"]

1. e4 {[%emt 0:00:00]} c6 {[%emt 0:00:00]} 2. Nc3 {[%emt 0:00:00]} d5 {[%emt 0:00:00]} 3. Nf3 {[%emt 0:00:00]} Bg4 {[%emt 0:00:00]} 4. h3 {[%emt 0:00:10]} Bxf3 {[%emt 0:00:00]} 5. Qxf3 {[%emt 0:00:09]} e6 {[%emt 0:00:00]} 6. d4 {[%emt 0:00:08]} dxe4 {[%emt 0:00:00]} 7. Qxe4 {[%emt 0:00:14] B11: Caro-Kann: Two Knights Variation.} Nf6 {[%emt 0:00:00]} 8. Qd3 {[%emt 0:00:07]} Na6 {[%emt 0:00:20]} 9. a3 {[%emt 0:08:38]} Nc7 {[%emt 0:08:39]} 10. g3 {[%emt 0:14:55]} Qd7 {[%emt 0:05:50]} 11. Bg2 {[%emt 0:01:43]} Be7 {[%emt 0:03:52] [#]} 12. b4 $146 {[%emt 0:06:00]} ({Predecessor:} 12. O-O O-O 13. Ne2 Rad8 14. Bf4 Nfd5 15. Bd2 Bf6 16. Rad1 Nb6 17. Qb3 e5 18. dxe5 Bxe5 {½-½ (59) Miettinen,K (2451)-Procopi,J (2254) ICCF email 2016}) 12... a5 {[%emt 0:25:31]} 13. Rb1 {[%emt 0:14:51]} (13. Na4 $11 Qd8 14. Nb6) 13... axb4 {[%emt 0:04:48]} 14. axb4 {[%emt 0:00:12]} Ncd5 {[%emt 0:07:39]} 15. b5 {[%emt 0:06:06]} Bb4 {[%emt 0:06:04]} (15... Nb4 $5 {[%cal Rb4d3]} 16. Qe2 Qxd4 $15) 16. bxc6 {[%emt 0:05:11]} bxc6 {[%emt 0:07:19]} 17. Bb2 {[%emt 0:00:31]} O-O {[%emt 0:04:23]} 18. O-O {[%emt 0:00:15]} Bxc3 {[%emt 0:01:08]} 19. Bxc3 {[%emt 0:00:10]} Ra3 {[%emt 0:00:07]} 20. Rb3 {[%emt 0:00:35]} Rxb3 {[%emt 0:00:04]} 21. cxb3 {[%emt 0:00:07]} Nxc3 {[%emt 0:00:11]} 22. Qxc3 {[%emt 0:00:07]} Nd5 {[%emt 0:00:08]} 23. Qc5 {[%emt 0:10:14]} Rb8 {[%emt 0:00:52]} 24. Rc1 {[%emt 0:03:40]} Rxb3 {[%emt 0:00:59]} 25. Qxc6 {[%emt 0:00:06]} Qxc6 {[%emt 0:00:12]} 26. Rxc6 $11 {[%emt 0:00:06]} Rb1+ {[%emt 0:00:11]} 27. Kh2 {[%emt 0:00:13]} g6 {[%emt 0:02:00]} 1/2-1/2

[Event "Kragero Resort B 2020"]
[Site "Kragero"]
[Date "2020.02.22"]
[Round "7.3"]
[White "Austad, Eirik"]
[Black "Skogli, Paal"]
[Result "1-0"]
[ECO "A28"]
[WhiteElo "1796"]
[BlackElo "1801"]
[Annotator "NA"]
[PlyCount "63"]
[EventDate "2020.02.19"]
[EventType "swiss"]
[EventCountry "NOR"]
[SourceTitle "playchess.com"]
[Source "ChessBase"]
[SourceQuality "1"]
[TimeControl "5400+30"]

1. c4 {[%emt 0:00:00]} e5 {[%emt 0:02:49]} 2. Nc3 {[%emt 0:00:00]} Nf6 {[%emt 0:00:06]} 3. Nf3 {[%emt 0:00:00]} Nc6 {[%emt 0:00:37]} 4. a3 {[%emt 0:00:01]} d5 {[%emt 0:02:21]} 5. cxd5 {[%emt 0:00:33]} Nxd5 {[%emt 0:00:24]} 6. Qc2 {[%emt 0:00:13]} Nxc3 {[%emt 0:03:09]} 7. bxc3 {[%emt 0:03:30]} Bc5 {[%emt 0:04:18]} 8. e3 {[%emt 0:06:24]} Qe7 {[%emt 0:14:16]} 9. Bb5 {[%emt 0:09:48]} Bd7 {[%emt 0:00:00]} 10. O-O {[%emt 0:05:26]} Bd6 {[%emt 0:00:00]} 11. e4 {[%emt 0:07:44]} O-O {[%emt 0:00:00]} 12. d4 {[%emt 0:05:05]} (12. d3 $11) 12... Bg4 {[%emt 0:00:00]} (12... exd4 $15 13. Re1 dxc3) 13. Qd3 {[%emt 0:06:18]} (13. Bxc6 $14 bxc6 14. Nxe5 Bxe5 15. dxe5) 13... Rad8 {[%emt 0:10:55]} 14. d5 {[%emt 0:03:01]} Nb8 {[%emt 0:00:52]} 15. h3 {[%emt 0:00:55]} Bh5 {[%emt 0:00:28]} 16. c4 $15 {[%emt 0:04:50]} Nd7 {[%emt 0:08:37]} 17. Bxd7 {[%emt 0:01:50]} Rxd7 {[%emt 0:01:25]} 18. g4 {[%emt 0:07:55]} Bg6 {[%emt 0:00:27]} 19. Nd2 {[%emt 0:01:57]} h5 {[%emt 0:01:02]} 20. Kg2 {[%emt 0:03:02]} Bh7 {[%emt 0:07:45]} 21. Nb3 {[%emt 0:03:43]} b6 {[%emt 0:00:43]} 22. f3 {[%emt 0:05:33]} Rc8 {[%emt 0:05:14]} 23. Be3 {[%emt 0:00:53]} c6 {[%emt 0:00:47]} 24. a4 {[%emt 0:00:47]} cxd5 {[%emt 0:00:25]} 25. cxd5 {[%emt 0:00:36]} Rdc7 {[%emt 0:01:57]} 26. Rfc1 {[%emt 0:01:32]} Qd7 {[%emt 0:01:15]} 27. Rxc7 {[%emt 0:01:57]} Rxc7 {[%emt 0:00:05]} 28. a5 {[%emt 0:00:29]} hxg4 {[%emt 0:03:24]} 29. hxg4 {[%emt 0:00:22]} b5 {[%emt 0:01:52]} 30. a6 {[%emt 0:01:12]} Rc4 {[%emt 0:08:38]} 31. Na5 {[%emt 0:00:44]} Bb4 {[%emt 0:01:31]} 32. Nxc4 {[%emt 0:00:56]} 1-0

[Event "Kragero Resort B 2020"]
[Site "Kragero"]
[Date "2020.02.22"]
[Round "7.4"]
[White "Bernstein, Jonas August"]
[Black "Rynning, Rune Kleiven"]
[Result "0-1"]
[ECO "D10"]
[WhiteElo "1798"]
[BlackElo "1625"]
[Annotator "NA"]
[PlyCount "60"]
[EventDate "2020.02.19"]
[EventType "swiss"]
[EventCountry "NOR"]
[SourceTitle "playchess.com"]
[Source "ChessBase"]
[SourceQuality "1"]
[TimeControl "5400+30"]

1. d4 {[%emt 0:01:25]} d5 {[%emt 0:00:00]} 2. c4 {[%emt 0:00:15]} c6 {[%emt 0:00:00]} 3. cxd5 {[%emt 0:00:32]} cxd5 {[%emt 0:00:00]} 4. Bf4 {[%emt 0:00:19]} Nf6 {[%emt 0:00:48]} 5. Nc3 {[%emt 0:00:27]} a6 {[%emt 0:00:58]} 6. e3 {[%emt 0:00:39]} Bf5 {[%emt 0:00:31]} 7. Qb3 {[%emt 0:01:30]} Qd7 {[%emt 0:02:46]} 8. Na4 {[%emt 0:04:45]} Qc6 {[%emt 0:04:19]} 9. e4 {[%emt 0:04:11]} b5 {[%emt 0:03:37]} 10. Nc3 {[%emt 0:35:31]} Bxe4 {[%emt 0:02:40]} 11. Rc1 {[%emt 0:05:34]} Qe6 {[%emt 0:10:11]} 12. Nge2 {[%emt 0:12:38]} Bd3 {[%emt 0:07:20]} 13. f3 {[%emt 0:07:02]} g6 {[%emt 0:04:52]} 14. Be5 {[%emt 0:04:11]} Bc4 {[%emt 0:00:42]} 15. Qd1 {[%emt 0:01:36]} Bh6 {[%emt 0:06:14]} 16. Rc2 {[%emt 0:09:19]} O-O {[%emt 0:07:56]} 17. b3 {[%emt 0:00:17]} Bxe2 {[%emt 0:00:21]} 18. Rxe2 {[%emt 0:02:26]} Qd7 {[%emt 0:10:20]} 19. Kf2 {[%emt 0:01:59]} Nc6 {[%emt 0:01:55]} 20. g4 {[%emt 0:01:23]} Rfc8 {[%emt 0:04:35]} 21. h4 {[%emt 0:02:51]} Nxe5 {[%emt 0:01:53]} 22. dxe5 {[%emt 0:00:07]} Nxg4+ {[%emt 0:01:10]} 23. fxg4 {[%emt 0:00:10]} Rxc3 {[%emt 0:00:13]} 24. g5 {[%emt 0:00:51]} Qf5+ {[%emt 0:04:14]} 25. Ke1 {[%emt 0:00:16]} Rac8 {[%emt 0:01:49]} 26. gxh6 {[%emt 0:01:03]} Rc1 {[%emt 0:00:13]} 27. Bh3 {[%emt 0:00:41]} Rxd1+ {[%emt 0:00:20]} 28. Kxd1 {[%emt 0:00:01]} Qb1+ {[%emt 0:01:01]} 29. Kd2 {[%emt 0:00:20]} Rc2+ {[%emt 0:00:26]} 30. Kd3 {[%emt 0:00:30]} Rc1+ {[%emt 0:00:30]} 0-1

[Event "Kragero Resort B 2020"]
[Site "Kragero"]
[Date "2020.02.22"]
[Round "7.5"]
[White "Solaas, Timian Martinius Man"]
[Black "Aasen, Kjetil Myrlid"]
[Result "1-0"]
[ECO "B07"]
[WhiteElo "1741"]
[BlackElo "1892"]
[Annotator "NA"]
[PlyCount "63"]
[EventDate "2020.02.19"]
[EventType "swiss"]
[EventCountry "NOR"]
[SourceTitle "playchess.com"]
[Source "ChessBase"]
[SourceQuality "1"]
[TimeControl "5400+30"]

{[%evp 8,44,39,52,55,35,75,18,32767,37,33,35,50,32767,42,35,48,-7,0,-25,0,-14,-12,-4,-8,0,32767,32767,32767,32767,-3,32767,32767,-31,32767,-33,32767,-11,0]} 1. e4 {[%emt 0:00:00]} d6 {[%emt 0:00:32]} 2. d4 {[%emt 0:00:00]} Nf6 {[%emt 0:00:10]} 3. Bd3 {[%emt 0:00:17]} e5 {[%emt 0:00:43]} 4. d5 {[%emt 0:00:07]} c6 {[%emt 0:00:14]} 5. c4 {[%emt 0:01:01]} Na6 {[%emt 0:00:18]} 6. Nc3 {[%emt 0:01:01] B07: Pirc Defence: Miscellaneous Systems.} Nc5 {[%emt 0:00:28]} 7. Nge2 {[%emt 0:01:28]} Nxd3+ {[%emt 0:02:07]} 8. Qxd3 {[%emt 0:02:26] [#]} a5 $146 {[%emt 0:05:58]} ({Predecessor:} 8... Be7 9. Rb1 O-O 10. b4 cxd5 11. cxd5 Nh5 12. O-O f5 13. f3 f4 14. Bd2 Qb6+ {0-1 (39) Hertneck,G (2575)-Adams,M (2630) Munich 1993}) 9. O-O {[%emt 0:01:41]} Be7 {[%emt 0:01:59]} 10. h3 {[%emt 0:04:58]} O-O {[%emt 0:02:47]} 11. f4 {[%emt 0:02:51]} cxd5 {[%emt 0:09:37]} 12. cxd5 {[%emt 0:06:00]} Nd7 {[%emt 0:08:01]} 13. Be3 {[%emt 0:04:07]} exf4 {[%emt 0:12:05]} 14. Bxf4 {[%emt 0:04:05]} Ne5 {[%emt 0:11:46]} 15. Bxe5 {[%emt 0:11:47]} dxe5 {[%emt 0:00:02]} 16. Nb5 {[%emt 0:01:02]} Qb6+ {[%emt 0:07:47]} 17. Kh1 {[%emt 0:01:54]} Bd7 {[%emt 0:00:53]} 18. Nec3 {[%emt 0:05:24]} Bb4 {[%emt 0:08:01]} 19. a4 {[%emt 0:06:58]} Rac8 {[%emt 0:03:11]} 20. Rac1 {[%emt 0:07:01]} Rfd8 {[%emt 0:00:39]} 21. Rfd1 {[%emt 0:02:18]} f6 {[%emt 0:04:55]} 22. Kh2 {[%emt 0:08:07]} Be8 $11 {[%emt 0:04:58]} 23. Rc2 {[%emt 0:06:45]} Rc5 {[%emt 0:03:52]} 24. Rdc1 {[%emt 0:04:19]} Rdc8 {[%emt 0:02:01]} 25. b3 {[%emt 0:04:51]} Kf8 {[%emt 0:05:17]} 26. d6 {[%emt 0:03:43]} Bxb5 {[%emt 0:03:38]} 27. Nxb5 {[%emt 0:00:15]} Rxc2 {[%emt 0:00:30]} 28. Rxc2 {[%emt 0:00:14]} Rxc2 {[%emt 0:00:38]} 29. Qxc2 {[%emt 0:00:11]} Bxd6 {[%emt 0:00:27]} 30. Qc8+ {[%emt 0:01:49]} Kf7 {[%emt 0:00:49]} 31. Qxb7+ {[%emt 0:00:39]} Bc7 {[%emt 0:00:31]} 32. Qxc7+ {[%emt 0:00:18]} 1-0

[Event "Kragero Resort B 2020"]
[Site "Kragero"]
[Date "2020.02.22"]
[Round "7.6"]
[White "Hausken, Andreas Skrede"]
[Black "Myagmarsuren, Evsuld"]
[Result "1-0"]
[ECO "B52"]
[WhiteElo "1856"]
[BlackElo "1497"]
[Annotator "NA"]
[PlyCount "113"]
[EventDate "2020.02.19"]
[EventType "swiss"]
[EventCountry "NOR"]
[SourceTitle "playchess.com"]
[Source "ChessBase"]
[SourceQuality "1"]
[TimeControl "5400+30"]

1. e4 {[%emt 0:00:00]} c5 {[%emt 0:00:00]} 2. Nf3 {[%emt 0:00:00]} d6 {[%emt 0:00:00]} 3. Bb5+ {[%emt 0:00:00]} Bd7 {[%emt 0:00:14]} 4. Bxd7+ {[%emt 0:00:00]} Nxd7 {[%emt 0:00:35]} 5. O-O {[%emt 0:00:08]} Ngf6 {[%emt 0:00:38]} 6. Qe2 {[%emt 0:01:48]} Qc7 {[%emt 0:00:43] B52: Sicilian: Moscow Variation with 3...Bd7.} 7. Na3 {[%emt 0:00:43]} a6 {[%emt 0:01:11]} 8. c3 {[%emt 0:04:16]} e6 {[%emt 0:03:12]} 9. d4 {[%emt 0:01:09]} Be7 {[%emt 0:01:12]} 10. Bf4 {[%emt 0:02:47] [#]} Rc8 $146 {[%emt 0:04:59]} ({Predecessor:} 10... O-O 11. e5 Nd5 12. Bg3 cxd4 13. cxd4 b5 14. Rac1 Qb6 15. Nc2 dxe5 16. Nxe5 N7f6 {1-0 (55) Viktorsson,S-Magnusson,P (1983) Mosfellsbaer 2010}) 11. Rac1 {[%emt 0:03:37]} O-O {[%emt 0:03:21]} 12. Nc4 {[%emt 0:03:01]} b5 {[%emt 0:03:06]} 13. Na3 {[%emt 0:04:46]} h6 {[%emt 0:01:00]} 14. Rfd1 {[%emt 0:03:00]} Rfd8 {[%emt 0:03:52]} 15. h3 {[%emt 0:05:06]} Qb7 {[%emt 0:04:59]} 16. e5 {[%emt 0:16:24]} dxe5 {[%emt 0:02:09]} 17. dxe5 {[%emt 0:02:15]} Nd5 {[%emt 0:01:31]} 18. Bh2 {[%emt 0:00:58]} Nf8 {[%emt 0:03:24]} (18... c4 $17 19. Nc2 Nc5) 19. Qe4 {[%emt 0:02:39]} Qa8 {[%emt 0:09:10]} 20. h4 {[%emt 0:07:39]} ({White should try} 20. c4 $15 Nb4 21. Qe2) 20... Ng6 {[%emt 0:03:54]} 21. h5 {[%emt 0:01:01]} Nf8 {[%emt 0:00:04]} 22. Nc2 {[%emt 0:02:29]} Rd7 {[%emt 0:02:11]} 23. Qg4 {[%emt 0:04:42]} Rcd8 {[%emt 0:01:52]} 24. c4 $2 {[%emt 0:01:30] [#]} (24. Rf1 $15) 24... bxc4 $2 {[%emt 0:04:36]} (24... f5 $1 $19 {[%cal Rf5g4]} 25. exf6 Nxf6 {[%mdl 64] Discovered Attack} 26. Rxd7 Nxg4 27. Rxe7 Qe4) 25. Qxc4 {[%emt 0:01:44]} Nb6 {[%emt 0:06:07]} 26. Qf1 {[%emt 0:00:16]} Rxd1 {[%emt 0:01:52]} 27. Rxd1 {[%emt 0:01:47]} Rxd1 {[%emt 0:00:16]} 28. Qxd1 {[%emt 0:00:02]} Qd5 {[%emt 0:00:24]} 29. Qa1 {[%emt 0:02:55]} Nh7 {[%emt 0:03:30]} 30. Ne3 {[%emt 0:00:35]} Qd7 {[%emt 0:00:37]} 31. Qf1 {[%emt 0:01:11]} Qb5 {[%emt 0:00:42]} 32. b3 {[%emt 0:04:54]} Ng5 {[%emt 0:02:07]} 33. Nxg5 {[%emt 0:00:13]} Bxg5 {[%emt 0:00:41]} 34. f4 {[%emt 0:00:18]} Be7 {[%emt 0:00:37]} 35. Kf2 $15 {[%emt 0:02:29]} Qxf1+ {[%emt 0:03:10]} 36. Kxf1 {[%emt 0:00:18]} g6 {[%emt 0:00:16]} 37. g4 {[%emt 0:02:09]} g5 {[%emt 0:01:00]} 38. f5 {[%emt 0:00:39]} Kf8 {[%emt 0:01:37]} 39. f6 {[%emt 0:00:25]} Bd8 {[%emt 0:00:05]} 40. Bg1 {[%emt 0:00:29]} Ke8 {[%emt 0:00:21]} 41. Ke2 {[%emt 0:01:27]} Kd7 {[%emt 0:00:24]} 42. Kd3 {[%emt 0:01:17]} Kc6 {[%emt 0:00:35]} 43. Ke4 {[%emt 0:00:50]} Bc7 {[%emt 0:00:14]} 44. Bf2 {[%emt 0:06:29]} Bd8 {[%emt 0:02:38]} 45. Nc4 {[%emt 0:01:24]} Nxc4 {[%emt 0:00:16]} 46. bxc4 {[%emt 0:00:04]} Kd7 {[%emt 0:01:47]} 47. Be3 {[%emt 0:01:08]} Ke8 {[%emt 0:00:07]} 48. Bxg5 {[%emt 0:00:36]} Kf8 {[%emt 0:00:27]} 49. Bxh6+ {[%emt 0:00:07]} Kg8 {[%emt 0:00:01]} 50. Be3 {[%emt 0:00:19]} Bb6 {[%emt 0:00:32]} 51. g5 {[%emt 0:00:06]} Kh7 {[%emt 0:00:25]} 52. Kf4 {[%emt 0:00:06]} Ba7 {[%emt 0:00:35]} 53. Ke4 {[%emt 0:01:11]} Bb6 {[%emt 0:00:28]} 54. Kd3 {[%emt 0:00:03]} Ba7 {[%emt 0:01:48]} 55. Kc2 {[%emt 0:00:04]} Bb6 {[%emt 0:00:04]} 56. Kb3 {[%emt 0:00:02]} Ba7 {[%emt 0:01:37]} 57. Ka4 {[%emt 0:00:09]} 1-0

[Event "Kragero Resort B 2020"]
[Site "Kragero"]
[Date "2020.02.22"]
[Round "7.7"]
[White "Sivertsen, Jarle"]
[Black "Skaslien, Ingrid"]
[Result "0-1"]
[ECO "C08"]
[WhiteElo "1606"]
[BlackElo "1847"]
[Annotator "NA"]
[PlyCount "82"]
[EventDate "2020.02.19"]
[EventType "swiss"]
[EventCountry "NOR"]
[SourceTitle "playchess.com"]
[Source "ChessBase"]
[SourceQuality "1"]
[TimeControl "5400+30"]

1. e4 {[%emt 0:00:00]} e6 {[%emt 0:00:00]} 2. d4 {[%emt 0:01:34]} d5 {[%emt 0:00:00]} 3. Nd2 {[%emt 0:04:27]} a6 {[%emt 0:01:27]} 4. Ngf3 {[%emt 0:02:07]} c5 {[%emt 0:01:56]} 5. exd5 {[%emt 0:01:09]} exd5 {[%emt 0:00:26]} 6. dxc5 {[%emt 0:02:28]} Bxc5 {[%emt 0:00:13]} 7. Nb3 {[%emt 0:00:34]} Bb6 {[%emt 0:00:15] 7...Bb6 scores better than 7...Ba7.} 8. c3 {[%emt 0:05:16] C08: French Tarrasch: 3...c5 4 exd5 exd5 sidelines.} Nf6 {[%emt 0:03:32]} 9. Be2 {[%emt 0:07:09]} O-O {[%emt 0:05:35]} 10. O-O {[%emt 0:01:39]} Ne4 {[%emt 0:06:20]} 11. Nfd4 {[%emt 0:02:16]} Nc6 {[%emt 0:04:11]} 12. Be3 {[%emt 0:05:04]} Re8 {[%emt 0:10:20]} 13. Qc2 {[%emt 0:08:38]} Bd7 {[%emt 0:02:07] [#]} 14. Rfe1 $146 {[%emt 0:06:26]} ({Predecessor:} 14. Rad1 Ne5 15. Nd2 Nxd2 16. Rxd2 Qf6 17. Qb3 Rad8 18. Nc2 Bxe3 19. Nxe3 Bc6 20. Rfd1 {0-1 (29) Polok,K (2136)-Kalvaitis,S (2252) Krakow 2011}) 14... Rc8 {[%emt 0:04:40]} 15. Bf1 {[%emt 0:05:15]} ({Better is} 15. Nxc6 $14 Rxc6 16. Bxb6 Qxb6 17. Bd3) 15... Nxd4 {[%emt 0:14:35]} 16. Nxd4 {[%emt 0:03:56]} Bc7 {[%emt 0:00:42]} 17. f3 {[%emt 0:06:49]} Nf6 {[%emt 0:05:16]} 18. Bf2 {[%emt 0:03:04]} Be5 {[%emt 0:05:35]} 19. Qb3 $11 {[%emt 0:02:41]} Qc7 {[%emt 0:02:24]} 20. g3 {[%emt 0:01:45]} Rcd8 {[%emt 0:01:57]} 21. Bg2 {[%emt 0:02:16]} Bd6 {[%emt 0:05:14]} 22. Qc2 {[%emt 0:06:10]} b5 {[%emt 0:04:05]} 23. Rac1 {[%emt 0:03:21]} Qa5 {[%emt 0:01:59]} 24. Nb3 {[%emt 0:01:43]} Qc7 {[%emt 0:00:20]} 25. Rxe8+ {[%emt 0:00:47]} Rxe8 {[%emt 0:00:16]} 26. Qd3 {[%emt 0:01:40]} Be6 {[%emt 0:03:06]} 27. Nd4 {[%emt 0:01:34]} Bc5 {[%emt 0:01:39]} 28. a3 {[%emt 0:05:19]} Qa7 {[%emt 0:00:45]} 29. Qd2 {[%emt 0:01:20]} Nd7 {[%emt 0:01:50]} 30. h4 {[%emt 0:02:02]} Ne5 {[%emt 0:01:24]} 31. h5 {[%emt 0:00:53]} h6 {[%emt 0:01:49]} 32. Qc2 {[%emt 0:02:23]} Qd7 {[%emt 0:04:07]} 33. Kh2 {[%emt 0:02:03]} Bxd4 {[%emt 0:01:59]} 34. Bxd4 {[%emt 0:00:14]} Bf5 {[%emt 0:00:05]} 35. Qb3 {[%emt 0:01:51]} Nc4 {[%emt 0:01:13]} 36. a4 {[%emt 0:01:32]} Re2 {[%emt 0:00:15]} 37. axb5 {[%emt 0:00:33]} Bh3 {[%emt 0:00:41]} 38. Rg1 {[%emt 0:00:05]} Nd2 {[%emt 0:01:19]} 39. Qd1 {[%emt 0:01:04]} Nxf3+ {[%emt 0:00:06]} 40. Kh1 {[%emt 0:00:00]} Bxg2+ {[%emt 0:00:12]} 41. Rxg2 {[%emt 0:00:00]} Qh3+ {[%emt 0:00:04]} 0-1